[Event "MČR v bleskovém šachu družstev 2019"]
[Site "Teplice, Czech Republic"]
[Date "2019.09.14"]
[Round "14.19"]
[White "Zima, Jan"]
[Black "Kral, David"]
[Result "0-1"]
[TimeControl "3 mim. + 2 s"]
[BlackFideId "326097"]
[WhiteElo "2048"]
[BlackElo "2028"]

1. e4 {[%clk 00:03:02]} {[%emt 00:00:02]} c5 {[%clk 00:03:04]} 2. Nc3 {[%clk
00:03:03]} {[%emt 00:00:01]} Nc6 {[%clk 00:03:05]} 3. Bb5 {[%clk 00:03:04]} e5
{[%clk 00:03:06]} {[%emt 00:00:01]} 4. d3 {[%clk 00:02:57]} {[%emt 00:00:08]}
d6 {[%clk 00:03:08]} 5. f4 {[%clk 00:02:52]} {[%emt 00:00:07]} Bd7 {[%clk
00:03:06]} {[%emt 00:00:04]} 6. Bxc6 {[%clk 00:02:47]} {[%emt 00:00:08]} Bxc6
{[%clk 00:03:06]} {[%emt 00:00:01]} 7. Nf3 {[%clk 00:02:47]} {[%emt 00:00:02]}
exf4 {[%clk 00:02:46]} {[%emt 00:00:23]} 8. Bxf4 {[%clk 00:02:46]} {[%emt
00:00:02]} Nf6 {[%clk 00:02:47]} {[%emt 00:00:02]} 9. O-O {[%clk 00:02:43]}
{[%emt 00:00:04]} Be7 {[%clk 00:02:48]} {[%emt 00:00:01]} 10. a4 {[%clk
00:02:28]} {[%emt 00:00:18]} O-O {[%clk 00:02:48]} {[%emt 00:00:01]} 11. Qe2
{[%clk 00:02:25]} {[%emt 00:00:05]} Nd7 {[%clk 00:02:37]} {[%emt 00:00:12]} 12.
Nd5 {[%clk 00:02:09]} {[%emt 00:00:18]} Bxd5 {[%clk 00:02:25]} {[%emt
00:00:15]} 13. exd5 {[%clk 00:02:10]} {[%emt 00:00:01]} Bf6 {[%clk 00:02:19]}
{[%emt 00:00:08]} 14. Bxd6 {[%clk 00:01:34]} {[%emt 00:00:38]} Re8 {[%clk
00:02:20]} {[%emt 00:00:01]} 15. Qd2 {[%clk 00:01:34]} {[%emt 00:00:02]} Nb6
{[%clk 00:01:46]} {[%emt 00:00:37]} 16. Bxc5 {[%clk 00:01:27]} {[%emt
00:00:08]} Qxd5 {[%clk 00:01:37]} {[%emt 00:00:11]} 17. Bxb6 axb6 {[%clk
00:01:38]} 18. d4 {[%clk 00:00:55]} {[%emt 00:00:13]} Re4 {[%clk 00:01:17]}
{[%emt 00:00:22]} 19. c3 {[%clk 00:00:33]} {[%emt 00:00:24]} Rae8 {[%clk
00:01:06]} {[%emt 00:00:13]} 20. Rfe1 {[%clk 00:00:33]} {[%emt 00:00:02]} Qc4
{[%clk 00:00:53]} {[%emt 00:00:15]} 21. Rxe4 {[%clk 00:00:23]} {[%emt
00:00:12]} Rxe4 {[%clk 00:00:54]} {[%emt 00:00:01]} 22. Re1 {[%clk 00:00:23]}
Rxe1+ 23. Qxe1 {[%clk 00:00:25]} Qxa4 {[%clk 00:00:51]} {[%emt 00:00:02]} 24.
h3 {[%clk 00:00:16]} {[%emt 00:00:10]} g6 {[%clk 00:00:49]} {[%emt 00:00:04]}
25. Qe4 {[%clk 00:00:17]} {[%emt 00:00:01]} Qa1+ {[%clk 00:00:46]} {[%emt
00:00:05]} 26. Kh2 {[%clk 00:00:15]} {[%emt 00:00:04]} Qxb2 {[%clk 00:00:46]}
{[%emt 00:00:02]} 27. Qxb7 {[%clk 00:00:13]} {[%emt 00:00:03]} b5 {[%clk
00:00:43]} {[%emt 00:00:06]} 28. Qc6 {[%clk 00:00:11]} {[%emt 00:00:04]} Kg7
{[%clk 00:00:42]} {[%emt 00:00:03]} 29. Kg3 {[%clk 00:00:06]} {[%emt 00:00:07]}
h5 {[%clk 00:00:43]} 30. h4 {[%clk 00:00:07]} {[%emt 00:00:02]} Qb3 {[%clk
00:00:39]} {[%emt 00:00:06]} 31. Qc5 {[%clk 00:00:08]} {[%emt 00:00:02]} Qb1
{[%clk 00:00:32]} {[%emt 00:00:09]} 32. Qc6 {[%clk 00:00:07]} {[%emt 00:00:02]}
Qf5 {[%clk 00:00:30]} {[%emt 00:00:04]} 33. Qc5 {[%clk 00:00:06]} {[%emt
00:00:03]} Qg4+ {[%clk 00:00:31]} 34. Kf2 {[%clk 00:00:06]} {[%emt 00:00:01]}
Bxh4+ {[%clk 00:00:31]} {[%emt 00:00:02]} 35. Nxh4 {[%clk 00:00:07]} {[%emt
00:00:01]} Qxh4+ {[%clk 00:00:32]} 36. Ke2 {[%clk 00:00:07]} {[%emt 00:00:02]}
Qg4+ {[%clk 00:00:33]} {[%emt 00:00:01]} 37. Kd2 {[%clk 00:00:07]} {[%emt
00:00:02]} Qxg2+ {[%clk 00:00:33]} {[%emt 00:00:02]} 38. Kd3 {[%clk 00:00:08]}
Qf3+ {[%clk 00:00:33]} {[%emt 00:00:03]} 39. Kd2 {[%clk 00:00:08]} {[%emt
00:00:01]} Qf4+ {[%clk 00:00:32]} {[%emt 00:00:03]} 40. Kd1 {[%clk 00:00:08]}
{[%emt 00:00:02]} Qf1+ {[%clk 00:00:30]} {[%emt 00:00:04]} 41. Kd2 {[%clk
00:00:09]} Qf2+ {[%clk 00:00:31]} {[%emt 00:00:01]} 42. Kd1 {[%clk 00:00:10]}
{[%emt 00:00:01]} Qf3+ {[%clk 00:00:31]} {[%emt 00:00:02]} 43. Kd2 {[%clk
00:00:11]} {[%emt 00:00:01]} Qf4+ {[%clk 00:00:30]} {[%emt 00:00:03]} 44. Kd1
{[%clk 00:00:12]} {[%emt 00:00:01]} Qb8 {[%clk 00:00:30]} {[%emt 00:00:02]} 45.
d5 {[%clk 00:00:08]} {[%emt 00:00:07]} Kf6 {[%clk 00:00:28]} {[%emt 00:00:03]}
46. Qd4+ {[%clk 00:00:03]} {[%emt 00:00:07]} Ke7 {[%clk 00:00:28]} {[%emt
00:00:02]} 47. Qe4+ {[%clk 00:00:04]} {[%emt 00:00:02]} Kd7 {[%clk 00:00:24]}
{[%emt 00:00:05]} 48. Qf3 {[%clk 00:00:05]} {[%emt 00:00:01]} Qe8 {[%clk
00:00:22]} {[%emt 00:00:05]} 49. Qd3 {[%clk 00:00:05]} {[%emt 00:00:02]} Kd6
{[%clk 00:00:22]} {[%emt 00:00:02]} 50. Kd2 {[%clk 00:00:04]} {[%emt 00:00:03]}
Qe5 {[%clk 00:00:21]} {[%emt 00:00:03]} 51. Qxb5 {[%clk 00:00:05]} {[%emt
00:00:01]} Qxd5+ {[%clk 00:00:22]} {[%emt 00:00:01]} 52. Ke1 {[%emt 00:00:25]}
0-1

[Event "MČR v bleskovém šachu družstev 2019"]
[Site "Teplice, Czech Republic"]
[Date "2019.09.14"]
[Round "14.21"]
[White "Krejci, Jan"]
[Black "Formanek, Martin"]
[Result "1-0"]
[TimeControl "3 mim. + 2 s"]
[WhiteTitle "GM"]
[WhiteFideId "322156"]
[BlackFideId "316768"]
[WhiteElo "2527"]
[BlackElo "2230"]

1. d4 {[%clk 00:03:03]} Nf6 {[%clk 00:03:03]} {[%emt 00:00:02]} 2. c4 {[%clk
00:03:04]} {[%emt 00:00:01]} g6 {[%clk 00:03:04]} 3. Nf3 {[%clk 00:03:06]} Bg7
{[%clk 00:03:05]} 4. Nc3 {[%clk 00:03:07]} {[%emt 00:00:02]} d6 {[%clk
00:03:06]} {[%emt 00:00:01]} 5. Bg5 {[%clk 00:03:07]} O-O {[%clk 00:03:06]}
{[%emt 00:00:03]} 6. e3 {[%clk 00:03:08]} c5 {[%clk 00:03:05]} {[%emt
00:00:04]} 7. d5 {[%clk 00:03:08]} {[%emt 00:00:02]} h6 {[%clk 00:03:05]}
{[%emt 00:00:02]} 8. Bh4 {[%clk 00:03:09]} {[%emt 00:00:01]} g5 {[%clk
00:03:06]} 9. Bg3 {[%clk 00:03:10]} {[%emt 00:00:01]} Nh5 {[%clk 00:03:07]} 10.
Bd3 {[%clk 00:03:11]} {[%emt 00:00:01]} f5 {[%clk 00:02:35]} {[%emt 00:00:34]}
11. Nd2 {[%clk 00:03:12]} Nxg3 {[%clk 00:02:33]} {[%emt 00:00:04]} 12. hxg3
{[%clk 00:03:13]} {[%emt 00:00:01]} Nd7 {[%clk 00:02:31]} {[%emt 00:00:04]} 13.
g4 {[%clk 00:02:52]} {[%emt 00:00:22]} Ne5 {[%clk 00:02:19]} {[%emt 00:00:15]}
14. Bxf5 {[%clk 00:02:52]} {[%emt 00:00:01]} Bxf5 {[%clk 00:02:20]} {[%emt
00:00:01]} 15. gxf5 {[%clk 00:02:53]} {[%emt 00:00:02]} Rxf5 {[%clk 00:02:21]}
16. Qc2 {[%clk 00:02:46]} {[%emt 00:00:09]} Qd7 {[%clk 00:02:12]} {[%emt
00:00:11]} 17. f3 {[%clk 00:02:35]} {[%emt 00:00:13]} a6 {[%clk 00:02:08]}
{[%emt 00:00:07]} 18. a4 {[%clk 00:02:32]} {[%emt 00:00:04]} Raf8 {[%clk
00:02:08]} {[%emt 00:00:02]} 19. Nce4 {[%clk 00:02:21]} {[%emt 00:00:13]} b5
{[%clk 00:02:03]} {[%emt 00:00:07]} 20. axb5 {[%clk 00:02:10]} {[%emt
00:00:13]} axb5 {[%clk 00:02:04]} {[%emt 00:00:01]} 21. Ng3 {[%clk 00:02:11]}
bxc4 {[%clk 00:01:49]} {[%emt 00:00:18]} 22. Nxf5 {[%clk 00:02:02]} {[%emt
00:00:11]} Nd3+ {[%clk 00:01:50]} 23. Kf1 {[%clk 00:01:42]} {[%emt 00:00:21]}
Qxf5 {[%clk 00:01:50]} {[%emt 00:00:02]} 24. Nxc4 {[%clk 00:01:43]} {[%emt
00:00:02]} g4 {[%clk 00:01:34]} {[%emt 00:00:18]} 25. f4 {[%clk 00:01:22]}
{[%emt 00:00:23]} Qxd5 {[%clk 00:01:00]} {[%emt 00:00:37]} 26. Rd1 {[%clk
00:01:21]} {[%emt 00:00:02]} Nb4 {[%clk 00:01:01]} 27. Rxd5 {[%clk 00:01:05]}
{[%emt 00:00:18]} Nxc2 {[%clk 00:01:02]} 28. Ke2 {[%clk 00:01:04]} {[%emt
00:00:03]} Nb4 {[%clk 00:00:49]} {[%emt 00:00:14]} 29. Rd2 {[%clk 00:01:05]} d5
{[%clk 00:00:47]} {[%emt 00:00:05]} 30. Nb6 {[%clk 00:00:55]} {[%emt 00:00:12]}
d4 {[%clk 00:00:35]} {[%emt 00:00:13]} 31. Rh4 {[%clk 00:00:42]} {[%emt
00:00:15]} Rb8 {[%clk 00:00:23]} {[%emt 00:00:15]} 32. Nd7 {[%clk 00:00:41]}
{[%emt 00:00:03]} Rb7 {[%clk 00:00:20]} {[%emt 00:00:05]} 33. Nxc5 {[%clk
00:00:41]} {[%emt 00:00:01]} 1-0

[Event "MČR v bleskovém šachu družstev 2019"]
[Site "Teplice, Czech Republic"]
[Date "2019.09.14"]
[Round "14.22"]
[White "Kopta, Pavel"]
[Black "Sorm, Daniel"]
[Result "1-0"]
[TimeControl "3 mim. + 2 s"]
[WhiteTitle "FM"]
[BlackTitle "FM"]
[WhiteFideId "309109"]
[BlackFideId "5400139"]
[WhiteElo "2234"]
[BlackElo "2310"]

1. d4 {[%emt 00:01:50]} d5 2. c4 e6 {[%emt 00:00:01]} 3. Nc3 c6 {[%emt
00:00:01]} 4. Nf3 {[%clk 00:03:05]} {[%emt 00:00:01]} dxc4 {[%emt 00:00:03]} 5.
a4 {[%emt 00:00:01]} Bb4 {[%clk 00:03:07]} {[%emt 00:00:01]} 6. e3 {[%clk
00:03:04]} {[%emt 00:00:04]} b5 {[%clk 00:03:07]} {[%emt 00:00:01]} 7. Bd2
{[%emt 00:00:11]} Qb6 {[%emt 00:00:01]} 8. Be2 {[%clk 00:02:49]} {[%emt
00:00:09]} Bb7 {[%emt 00:00:10]} 9. O-O {[%emt 00:00:02]} Nf6 {[%clk 00:02:54]}
{[%emt 00:00:08]} 10. b3 {[%clk 00:02:42]} {[%emt 00:00:09]} Bxc3 {[%clk
00:02:51]} {[%emt 00:00:05]} 11. Bxc3 {[%clk 00:02:43]} {[%emt 00:00:02]} b4
{[%clk 00:02:52]} 12. a5 {[%clk 00:02:38]} {[%emt 00:00:07]} Qc7 {[%clk
00:02:47]} {[%emt 00:00:07]} 13. Bxb4 {[%clk 00:02:38]} {[%emt 00:00:03]} Na6
{[%clk 00:02:44]} {[%emt 00:00:05]} 14. Ba3 {[%clk 00:02:32]} {[%emt 00:00:08]}
c5 {[%clk 00:02:41]} {[%emt 00:00:05]} 15. dxc5 {[%clk 00:02:21]} {[%emt
00:00:12]} Nxc5 {[%clk 00:02:35]} {[%emt 00:00:08]} 16. Rc1 {[%clk 00:02:09]}
{[%emt 00:00:14]} Rd8 {[%clk 00:02:23]} {[%emt 00:00:15]} 17. Qc2 {[%clk
00:02:03]} {[%emt 00:00:07]} Qxa5 {[%clk 00:02:12]} {[%emt 00:00:12]} 18. Qxc4
{[%clk 00:01:35]} {[%emt 00:00:31]} Qxa3 {[%clk 00:02:04]} {[%emt 00:00:10]} 19.
Ra1 {[%clk 00:01:22]} {[%emt 00:00:15]} Qxb3 {[%clk 00:01:17]} {[%emt
00:00:50]} 20. Qxc5 {[%clk 00:01:22]} {[%emt 00:00:01]} Qd5 {[%clk 00:01:11]}
{[%emt 00:00:08]} 21. Bb5+ {[%emt 00:00:03]} Nd7 22. Qb4 {[%clk 00:01:18]}
{[%emt 00:00:05]} Bc6 {[%clk 00:00:49]} {[%emt 00:00:25]} 23. Bxc6 {[%clk
00:01:11]} {[%emt 00:00:09]} Qxc6 {[%clk 00:00:50]} {[%emt 00:00:01]} 24. Rfc1
{[%clk 00:01:08]} {[%emt 00:00:05]} Qb6 {[%emt 00:00:09]} 25. Qa3 {[%emt
00:00:05]} f6 {[%emt 00:00:06]} 26. Rab1 {[%emt 00:00:01]} Kf7 {[%emt
00:00:16]} 27. Rxb6 {[%emt 00:00:01]} axb6 {[%clk 00:00:26]} {[%emt 00:00:03]}
28. Qa7 {[%clk 00:01:06]} Rhe8 {[%emt 00:00:04]} 29. Rc7 {[%emt 00:00:02]} Re7
{[%clk 00:00:25]} {[%emt 00:00:01]} 30. h3 {[%clk 00:01:07]} Rde8 {[%clk
00:00:25]} {[%emt 00:00:02]} 31. Nd4 {[%emt 00:00:04]} Nc5 {[%emt 00:00:03]} 32.
Rxe7+ {[%emt 00:00:04]} Rxe7 {[%emt 00:00:01]} 33. Qxb6 {[%clk 00:01:05]}
{[%emt 00:00:01]} Ne4 {[%clk 00:00:22]} {[%emt 00:00:04]} 34. g4 {[%clk
00:01:02]} {[%emt 00:00:05]} g5 {[%emt 00:00:06]} 35. Kg2 {[%emt 00:00:02]} h5
{[%clk 00:00:17]} {[%emt 00:00:02]} 36. Qb8 {[%clk 00:01:03]} {[%emt 00:00:02]}
hxg4 {[%clk 00:00:13]} {[%emt 00:00:07]} 37. hxg4 {[%clk 00:01:04]} Kg7 {[%clk
00:00:08]} {[%emt 00:00:08]} 38. Qd8 {[%clk 00:01:03]} {[%emt 00:00:02]} Kf7
{[%emt 00:00:01]} 39. Qh8 {[%emt 00:00:01]} Nc5 {[%clk 00:00:07]} {[%emt
00:00:03]} 40. Qh7+ {[%clk 00:01:04]} {[%emt 00:00:03]} Ke8 {[%clk 00:00:09]}
{[%emt 00:00:01]} 41. Qg6+ {[%clk 00:01:03]} {[%emt 00:00:02]} Rf7 {[%clk
00:00:09]} {[%emt 00:00:03]} 42. Nc6 {[%emt 00:00:06]} Nb7 {[%clk 00:00:06]} 43.
Qg8+ {[%emt 00:00:02]} Rf8 {[%emt 00:00:01]} 44. Qxe6# {[%emt 00:00:01]} 1-0

[Event "MČR v bleskovém šachu družstev 2019"]
[Site "Teplice, Czech Republic"]
[Date "2019.09.14"]
[Round "14.23"]
[White "Strasil, Pavel"]
[Black "Chmel, Kristian"]
[Result "0-1"]
[TimeControl "3 mim. + 2 s"]
[WhiteFideId "308013"]
[BlackFideId "344281"]
[WhiteElo "2026"]
[BlackElo "2097"]

1. d4 {[%clk 00:03:01]} {[%emt 00:00:01]} Nf6 {[%clk 00:03:03]} {[%emt
00:00:01]} 2. c4 {[%clk 00:03:01]} {[%emt 00:00:02]} g6 {[%clk 00:03:04]}
{[%emt 00:00:01]} 3. Nc3 {[%clk 00:03:00]} {[%emt 00:00:03]} d5 {[%clk
00:03:05]} {[%emt 00:00:01]} 4. cxd5 {[%clk 00:02:57]} {[%emt 00:00:05]} Nxd5
{[%clk 00:03:06]} {[%emt 00:00:01]} 5. Nf3 {[%clk 00:02:57]} {[%emt 00:00:02]}
Bg7 {[%clk 00:03:07]} {[%emt 00:00:01]} 6. e3 {[%clk 00:02:58]} O-O {[%clk
00:03:02]} {[%emt 00:00:08]} 7. Be2 {[%clk 00:02:53]} {[%emt 00:00:07]} c5
{[%clk 00:02:58]} {[%emt 00:00:07]} 8. Nxd5 {[%clk 00:02:46]} {[%emt 00:00:09]}
Qxd5 {[%clk 00:02:58]} {[%emt 00:00:01]} 9. dxc5 {[%clk 00:02:42]} {[%emt
00:00:06]} Qxc5 {[%clk 00:02:58]} {[%emt 00:00:03]} 10. O-O {[%clk 00:02:41]}
{[%emt 00:00:01]} Nc6 {[%clk 00:02:59]} {[%emt 00:00:02]} 11. a3 {[%clk
00:02:38]} {[%emt 00:00:06]} Rd8 {[%clk 00:02:37]} {[%emt 00:00:23]} 12. Qa4
{[%clk 00:02:31]} {[%emt 00:00:09]} Bf5 {[%clk 00:02:24]} {[%emt 00:00:14]} 13.
Qb5 {[%clk 00:02:26]} {[%emt 00:00:08]} Qc2 {[%clk 00:02:08]} {[%emt 00:00:18]}
14. Qc4 {[%clk 00:02:23]} {[%emt 00:00:06]} Qxc4 {[%clk 00:01:55]} {[%emt
00:00:15]} 15. Bxc4 {[%clk 00:02:23]} {[%emt 00:00:01]} Rac8 {[%clk 00:01:56]}
16. Be2 {[%clk 00:02:06]} {[%emt 00:00:20]} Na5 {[%clk 00:01:50]} {[%emt
00:00:08]} 17. Nd4 {[%clk 00:01:47]} {[%emt 00:00:22]} Bxd4 {[%clk 00:01:49]}
{[%emt 00:00:03]} 18. exd4 {[%clk 00:01:48]} Nb3 {[%clk 00:01:45]} {[%emt
00:00:06]} 19. Rb1 {[%clk 00:01:49]} {[%emt 00:00:01]} Bxb1 {[%clk 00:01:46]}
{[%emt 00:00:02]} 0-1

[Event "MČR v bleskovém šachu družstev 2019"]
[Site "Teplice, Czech Republic"]
[Date "2019.09.14"]
[Round "14.24"]
[White "Routner, Jakub"]
[Black "Krejci, Jan"]
[Result "1-0"]
[TimeControl "3 mim. + 2 s"]
[WhiteFideId "322245"]
[BlackFideId "316873"]
[WhiteElo "2138"]
[BlackElo "2048"]

1. e4 {[%clk 00:03:03]} e5 {[%clk 00:03:03]} {[%emt 00:00:01]} 2. Nf3 {[%clk
00:03:04]} {[%emt 00:00:01]} Nf6 {[%clk 00:03:04]} 3. Nxe5 {[%clk 00:03:04]}
{[%emt 00:00:02]} d6 {[%clk 00:03:06]} 4. Nf3 {[%clk 00:03:04]} {[%emt
00:00:02]} Nxe4 {[%clk 00:03:07]} {[%emt 00:00:01]} 5. Nc3 {[%clk 00:03:05]}
{[%emt 00:00:01]} Nxc3 {[%clk 00:03:07]} {[%emt 00:00:02]} 6. dxc3 {[%clk
00:03:06]} Be7 {[%clk 00:03:08]} {[%emt 00:00:01]} 7. Bf4 {[%clk 00:03:04]}
{[%emt 00:00:04]} Nc6 {[%clk 00:03:09]} {[%emt 00:00:01]} 8. Qd2 {[%clk
00:03:05]} Be6 {[%clk 00:03:10]} {[%emt 00:00:01]} 9. Bd3 {[%clk 00:02:56]}
{[%emt 00:00:11]} Qd7 {[%clk 00:03:10]} {[%emt 00:00:02]} 10. a3 {[%clk
00:02:48]} {[%emt 00:00:10]} h6 {[%clk 00:03:11]} 11. h3 {[%clk 00:02:48]}
{[%emt 00:00:02]} Bf6 {[%clk 00:03:10]} {[%emt 00:00:03]} 12. O-O-O {[%clk
00:02:37]} {[%emt 00:00:13]} a6 {[%clk 00:03:10]} {[%emt 00:00:02]} 13. Rhe1
{[%clk 00:02:34]} {[%emt 00:00:04]} O-O-O {[%clk 00:03:10]} {[%emt 00:00:02]}
14. Be4 {[%clk 00:02:30]} {[%emt 00:00:07]} Kb8 {[%clk 00:03:06]} {[%emt
00:00:05]} 15. Kb1 {[%clk 00:02:31]} {[%emt 00:00:02]} g5 {[%clk 00:03:02]}
{[%emt 00:00:06]} 16. Bg3 {[%clk 00:02:29]} {[%emt 00:00:03]} Rhe8 {[%clk
00:02:55]} {[%emt 00:00:09]} 17. Nd4 {[%clk 00:02:27]} {[%emt 00:00:04]} Nxd4
{[%clk 00:02:53]} {[%emt 00:00:05]} 18. cxd4 {[%clk 00:02:26]} {[%emt
00:00:03]} d5 {[%clk 00:02:53]} {[%emt 00:00:01]} 19. Bf3 {[%clk 00:02:19]}
{[%emt 00:00:09]} Qb5 {[%clk 00:02:49]} {[%emt 00:00:07]} 20. Be5 {[%clk
00:02:12]} {[%emt 00:00:10]} Be7 {[%clk 00:02:48]} {[%emt 00:00:02]} 21. Re2
{[%clk 00:02:03]} {[%emt 00:00:10]} Bxa3 {[%clk 00:02:42]} {[%emt 00:00:09]} 22.
Qc3 {[%clk 00:01:49]} {[%emt 00:00:16]} Bd6 {[%clk 00:02:35]} {[%emt 00:00:09]}
23. Rde1 {[%clk 00:01:50]} {[%emt 00:00:02]} Bxe5 {[%clk 00:02:34]} {[%emt
00:00:02]} 24. Rxe5 {[%clk 00:01:51]} {[%emt 00:00:01]} c6 {[%clk 00:02:29]}
{[%emt 00:00:07]} 25. Bg4 {[%clk 00:01:47]} {[%emt 00:00:05]} Rd6 {[%clk
00:02:15]} {[%emt 00:00:16]} 26. Qg3 {[%clk 00:01:47]} {[%emt 00:00:03]} Red8
{[%clk 00:01:57]} {[%emt 00:00:20]} 27. Bxe6 {[%clk 00:01:43]} {[%emt
00:00:05]} fxe6 {[%clk 00:01:58]} {[%emt 00:00:02]} 28. Rxe6 {[%clk 00:01:44]}
Qb4 {[%clk 00:01:51]} {[%emt 00:00:09]} 29. c3 {[%clk 00:01:43]} {[%emt
00:00:03]} Qb3 {[%clk 00:01:36]} {[%emt 00:00:17]} 30. Rxd6 {[%clk 00:01:42]}
{[%emt 00:00:02]} Rxd6 {[%clk 00:01:37]} {[%emt 00:00:01]} 31. Qxd6+ {[%clk
00:01:43]} {[%emt 00:00:01]} Ka7 {[%clk 00:01:39]} 32. Qc5+ {[%clk 00:01:42]}
{[%emt 00:00:03]} Kb8 {[%clk 00:01:40]} {[%emt 00:00:02]} 1-0

[Event "MČR v bleskovém šachu družstev 2019"]
[Site "Teplice, Czech Republic"]
[Date "2019.09.14"]
[Round "14.25"]
[White "Starek, Stanislav"]
[Black "Liska, Jiri"]
[Result "0-1"]
[TimeControl "3 mim. + 2 s"]
[BlackTitle "FM"]
[WhiteFideId "349844"]
[WhiteElo "2119"]
[BlackElo "2241"]

1. e4 {[%clk 00:03:01]} {[%emt 00:00:02]} c5 {[%clk 00:03:01]} {[%emt
00:00:05]} 2. Nf3 {[%clk 00:03:01]} {[%emt 00:00:01]} Nc6 {[%clk 00:03:01]}
{[%emt 00:00:02]} 3. d4 {[%clk 00:03:01]} {[%emt 00:00:02]} cxd4 4. Nxd4 {[%clk
00:03:02]} e5 {[%clk 00:03:02]} {[%emt 00:00:02]} 5. Nb3 {[%clk 00:02:51]}
{[%emt 00:00:13]} Nf6 {[%clk 00:03:02]} {[%emt 00:00:02]} 6. Nc3 {[%clk
00:02:51]} {[%emt 00:00:01]} Bb4 {[%clk 00:03:03]} {[%emt 00:00:02]} 7. Bd3
{[%clk 00:02:46]} {[%emt 00:00:07]} d5 {[%clk 00:02:58]} {[%emt 00:00:07]} 8.
exd5 {[%clk 00:02:45]} {[%emt 00:00:03]} Nxd5 {[%clk 00:02:42]} {[%emt
00:00:18]} 9. Bd2 {[%clk 00:02:34]} {[%emt 00:00:12]} Nxc3 {[%clk 00:02:42]}
{[%emt 00:00:03]} 10. bxc3 {[%clk 00:02:33]} {[%emt 00:00:02]} Be7 {[%clk
00:02:42]} {[%emt 00:00:02]} 11. O-O {[%clk 00:02:33]} {[%emt 00:00:03]} O-O
{[%clk 00:02:40]} {[%emt 00:00:04]} 12. f4 {[%clk 00:02:23]} {[%emt 00:00:11]}
Bf6 {[%clk 00:02:26]} {[%emt 00:00:16]} 13. f5 {[%clk 00:02:09]} {[%emt
00:00:17]} a5 {[%clk 00:02:26]} {[%emt 00:00:02]} 14. Nc5 {[%clk 00:02:00]}
{[%emt 00:00:11]} Qb6 {[%clk 00:01:49]} {[%emt 00:00:38]} 15. Be3 {[%clk
00:01:48]} {[%emt 00:00:14]} Be7 {[%clk 00:01:50]} {[%emt 00:00:02]} 16. Rb1
{[%clk 00:01:40]} {[%emt 00:00:11]} Qa7 {[%clk 00:01:21]} {[%emt 00:00:29]} 17.
Rb5 {[%clk 00:01:34]} {[%emt 00:00:09]} Bd7 {[%clk 00:00:42]} {[%emt 00:00:41]}
18. Qf3 {[%clk 00:01:06]} {[%emt 00:00:29]} Nd4 {[%clk 00:00:31]} {[%emt
00:00:14]} 19. Nxd7 {[%clk 00:00:36]} {[%emt 00:00:32]} Nxf3+ {[%clk 00:00:28]}
{[%emt 00:00:04]} 20. Rxf3 {[%clk 00:00:37]} {[%emt 00:00:02]} b6 {[%clk
00:00:21]} {[%emt 00:00:09]} 21. Nxf8 {[%clk 00:00:38]} {[%emt 00:00:01]} Rxf8
{[%clk 00:00:21]} {[%emt 00:00:02]} 22. Rxb6 {[%clk 00:00:34]} {[%emt
00:00:06]} Qc7 {[%clk 00:00:22]} 23. f6 {[%clk 00:00:20]} {[%emt 00:00:17]} Bc5
{[%clk 00:00:20]} {[%emt 00:00:03]} 24. fxg7 {[%clk 00:00:13]} {[%emt
00:00:09]} Bxe3+ {[%clk 00:00:18]} {[%emt 00:00:04]} 25. Rxe3 {[%clk 00:00:14]}
{[%emt 00:00:01]} Qxb6 {[%clk 00:00:13]} {[%emt 00:00:08]} 26. gxf8=Q+ {[%clk
00:00:10]} {[%emt 00:00:05]} Kxf8 {[%clk 00:00:14]} {[%emt 00:00:02]} 27. Kf2
{[%clk 00:00:11]} h6 {[%clk 00:00:10]} {[%emt 00:00:07]} 28. Ke2 {[%clk
00:00:11]} {[%emt 00:00:02]} Qc5 {[%clk 00:00:10]} {[%emt 00:00:01]} 29. c4
{[%clk 00:00:10]} {[%emt 00:00:02]} f6 {[%clk 00:00:11]} {[%emt 00:00:01]} 30.
Re4 {[%clk 00:00:09]} {[%emt 00:00:04]} a4 {[%clk 00:00:10]} {[%emt 00:00:03]}
31. Kf3 {[%clk 00:00:07]} {[%emt 00:00:03]} a3 {[%clk 00:00:11]} {[%emt
00:00:02]} 32. Kg4 {[%clk 00:00:08]} {[%emt 00:00:01]} Qf2 {[%clk 00:00:11]}
{[%emt 00:00:01]} 33. Kh3 {[%clk 00:00:09]} Qf5+ {[%clk 00:00:08]} {[%emt
00:00:07]} 34. Kg3 {[%clk 00:00:11]} Qg5+ {[%clk 00:00:08]} {[%emt 00:00:01]}
35. Kf2 {[%clk 00:00:12]} {[%emt 00:00:01]} Qd2+ {[%clk 00:00:09]} 36. Re2
{[%clk 00:00:13]} {[%emt 00:00:01]} Qc3 {[%clk 00:00:10]} 37. Kf3 {[%clk
00:00:10]} {[%emt 00:00:06]} Qb2 {[%clk 00:00:11]} {[%emt 00:00:01]} 38. Ke4
{[%clk 00:00:08]} {[%emt 00:00:04]} Qxa2 {[%clk 00:00:08]} {[%emt 00:00:05]} 39.
Kf5 {[%clk 00:00:09]} {[%emt 00:00:01]} Qb1 {[%clk 00:00:07]} {[%emt 00:00:03]}
40. Kxf6 {[%clk 00:00:07]} {[%emt 00:00:05]} Qb6+ {[%clk 00:00:07]} {[%emt
00:00:01]} 41. Kxe5 {[%clk 00:00:05]} {[%emt 00:00:04]} Qc5+ {[%clk 00:00:07]}
{[%emt 00:00:02]} 42. Kf4 {[%clk 00:00:04]} {[%emt 00:00:02]} a2 {[%clk
00:00:08]} {[%emt 00:00:02]} 0-1